bitfinex/quotes_ETHUSD_20250319
["timestamp","ask_amount","ask_price","bid_price","bid_amount"]
[1742411571608,4.88913,2045.4,2044.7,3.7794]
[1742411571803,4.88933,2045.3,2044.7,3.7794]
[1742411572010,4.88933,2045.3,2044.7,4.79811937]
[1742411572327,4.88993,2045.1,2044.7,0.7794]
[1742411572544,4.88949,2045.2,2044.7,0.7794]
[1742411572699,3.13899192,2045.4,2044.7,0.7794]
[1742411572700,4.8892,2045.4,2044.7,0.7794]
[1742411572900,4.88882,2045.5,2044.8,1.3341]
[1742411573194,4.88882,2045.5,2044.9,0.43341]
[1742411573398,6.041,2045.8,2045.0,0.7972]
[1742411573672,4.88908,2045.4,2045.0,0.7972]
[1742411573799,4.8894,2045.3,2045.0,0.7972]
[1742411574149,4.88938,2045.3,2045.0,0.7972]
[1742411574301,4.88906,2045.4,2045.0,0.7972]
[1742411574938,4.88854,2045.6,2045.0,0.7972]
[1742411575394,9.77728,2045.6,2045.0,0.7972]
[1742411575795,4.8882,2045.8,2045.0,0.7972]
[1742411576035,4.88873,2045.6,2045.0,0.7972]
[1742411576206,0.488873,2045.5,2045.0,0.7972]
[1742411576529,8.02709192,2045.8,2045.0,0.7972]
[1742411576737,9.77638,2045.8,2045.0,0.7972]
[1742411576935,4.88836,2045.7,2045.0,0.7972]
[1742411577143,4.8881,2045.8,2045.0,3.0]
[1742411577345,4.88845,2045.7,2045.1,1.3146]
[1742411577503,5.37693,2045.8,2045.1,7.3536]
[1742411577833,4.88812,2045.8,2045.1,7.3536]
[1742411578155,9.00333092,2046.3,2045.3,0.55]
[1742411578459,4.88619,2046.6,2045.8,0.7569]
[1742411578728,4.88633,2046.6,2046.0,3.7569]
[1742411578938,4.88628,2046.6,2046.0,3.7569]
[1742411579144,4.88594,2046.7,2046.0,3.7569]
[1742411579304,5.81775002,2046.7,2046.0,3.7569]
[1742411579829,0.93181002,2046.7,2046.0,3.7569]
[1742411580003,4.88548,2046.9,2046.2,0.8237]
[1742411580205,4.88521,2047.0,2046.3,0.55]
[1742411580516,4.88603,2046.7,2046.4,0.8237]
[1742411580830,4.88633,2046.6,2046.4,0.8237]
[1742411581033,4.88537,2047.0,2046.4,0.8237]
[1742411581246,0.488537,2047.0,2046.4,0.8237]
[1742411581446,4.88609,2046.7,2046.4,0.8237]
[1742411581756,9.77173,2046.8,2046.4,0.8237]
[1742411581962,4.88585,2046.8,2046.4,0.8237]
[1742411582158,4.88565,2046.9,2046.4,0.8237]
[1742411582356,8.02398192,2047.1,2046.4,0.8237]
[1742411582551,3.13899192,2046.9,2046.4,0.8237]
[1742411582755,4.88639,2046.5,2046.4,0.8237]
[1742411582956,4.88591,2046.7,2046.4,0.8237]
[1742411583167,4.88624,2046.6,2046.4,0.8237]
[1742411583469,3.13899192,2046.5,2045.9,0.7674]
[1742411583771,4.88744,2046.1,2045.9,0.7674]
[1742411584332,4.8883,2045.7,2045.6,0.8184]
[1742411584572,0.8004077,2045.8,2045.4,0.96636474]
[1742411584772,4.88793,2045.9,2045.4,0.96636474]
[1742411584958,4.88841,2045.7,2045.3,1.19228004]
[1742411585139,3.13899192,2046.0,2045.3,0.8184]
[1742411585140,4.88787,2045.9,2045.3,0.8184]
[1742411585340,4.88788,2045.9,2045.3,0.8184]
[1742411585681,4.88815,2045.8,2045.3,0.8184]
[1742411585887,4.88783,2045.9,2045.3,0.8184]
[1742411586378,4.88768,2046.0,2045.3,0.8184]
[1742411586584,4.88732,2046.2,2045.4,0.55]
[1742411586879,4.88732,2046.2,2045.5,0.8184]
[1742411587234,4.02155588,2046.4,2045.6,0.55]
[1742411587235,5.76919396,2046.4,2045.6,0.55]
[1742411587434,2.0551678,2047.0,2045.6,0.55]
[1742411587435,3.13899192,2046.8,2045.9,0.8184]
[1742411587874,4.88607,2046.7,2045.9,0.8184]
[1742411588079,4.88568,2046.8,2046.0,0.55]
[1742411588292,4.88495,2047.1,2046.3,0.8229]
[1742411588439,4.88552,2046.9,2046.3,3.8229]
[1742411588643,4.88529,2047.0,2046.3,1.57408919]
[1742411588858,4.88529,2047.0,2046.3,0.8229]
[1742411589373,4.88557,2046.9,2046.3,0.8229]
[1742411589570,4.88525,2047.0,2046.3,0.8229]
[1742411589869,9.77066,2047.0,2046.3,0.8229]
[1742411590069,4.88584,2046.8,2046.3,0.8229]
[1742411590285,0.488584,2046.8,2046.3,0.8229]
[1742411590472,5.374354,2046.8,2046.3,0.8229]
[1742411590667,0.488584,2046.8,2046.3,0.8229]
[1742411590984,4.88535,2047.0,2046.3,0.8229]
[1742411591179,4.88535,2047.0,2046.4,0.55]
[1742411591340,4.88535,2047.0,2046.3,0.8229]
[1742411591341,4.88549,2046.9,2046.3,3.8229]
[1742411591545,4.88506,2047.1,2046.5,0.8253]
[1742411591770,4.88424,2047.4,2046.4,0.8117]
[1742411592089,4.8839,2047.6,2046.6,0.8117]
[1742411592270,4.88401,2047.5,2046.9,0.8117]
[1742411592587,4.88389,2047.6,2047.1,0.8246]
[1742411592883,4.88419,2047.5,2047.1,0.8246]
[1742411593087,4.88461,2047.3,2047.1,0.8246]
[1742411593383,4.88472,2047.2,2047.1,0.8246]
[1742411593743,9.77027,2047.1,2046.8,3.8246]
[1742411593943,4.88534,2047.0,2046.8,0.8246]
[1742411594578,4.8851,2047.1,2046.8,0.8246]
[1742411594899,4.88469,2047.3,2046.8,0.8246]
[1742411595189,4.88423,2047.5,2046.8,0.87345219]
[1742411595366,4.88466,2047.3,2046.8,0.8246]
[1742411595547,4.88537,2047.0,2046.8,0.8246]
[1742411595879,4.88466,2047.3,2046.5,0.8246]
[1742411595880,4.8851,2047.1,2046.5,0.8246]
[1742411596083,4.88562,2046.9,2046.5,0.8246]
[1742411596270,9.77116,2046.9,2046.5,0.8246]
[1742411596445,9.77114,2046.9,2046.5,0.8246]
[1742411596637,4.88554,2046.9,2046.5,0.8246]
[1742411597189,4.8859,2046.8,2046.5,0.8246]
[1742411597347,4.88589,2046.8,2046.5,0.8246]
[1742411597972,4.88533,2047.0,2046.5,0.8246]
[1742411598158,4.88579,2046.8,2046.5,0.8246]
[1742411598738,4.88615,2046.6,2046.5,0.8246]
[1742411598942,4.88653,2046.5,2046.2,0.7738]
[1742411599239,0.977127,2046.8,2046.2,0.7738]
[1742411599442,9.77106,2046.9,2046.3,0.55]
[1742411599681,4.88523,2047.0,2046.3,0.91174258]
[1742411599839,4.88472,2047.2,2046.4,6.06]
[1742411600042,4.88553,2046.9,2046.4,6.06]
[1742411600443,9.77118,2046.9,2046.4,6.06]
[1742411600643,4.88553,2046.9,2046.4,6.06]
[1742411600842,4.88524,2047.0,2046.4,6.83455426]
[1742411601050,4.88476,2047.2,2046.5,0.7738]
[1742411601341,4.88476,2047.2,2046.5,6.8008]
[1742411601645,4.88528,2047.0,2046.5,6.8008]
[1742411601851,0.04871709,2046.9,2046.5,0.7738]
[1742411602152,4.8858,2046.8,2046.5,0.7738]
[1742411602339,4.88598,2046.7,2046.5,0.7738]
[1742411602537,4.88615,2046.6,2046.4,6.06]
[1742411602784,5.863363,2046.6,2046.4,6.06]
[1742411602959,4.88596,2046.7,2046.4,6.06]
[1742411603149,9.77209,2046.7,2046.4,6.06]
[1742411603458,5.70512,2047.0,2046.4,6.06]
[1742411603459,4.88639,2046.5,2046.4,6.06]
[1742411603810,9.77441,2046.2,2046.0,6.06]
[1742411604013,9.77441,2046.2,2045.9,0.7718]
[1742411604014,0.977441,2046.2,2045.6,0.7718]
[1742411604311,4.88768,2046.0,2045.6,0.7718]
[1742411604472,4.88757,2046.1,2045.6,0.7718]
[1742411604672,4.88755,2046.1,2045.6,0.7718]
[1742411604897,1.6203077,2046.5,2045.6,0.7718]
[1742411605059,0.8199,2046.5,2045.7,0.55]
[1742411605260,4.88687,2046.3,2045.7,0.55]
[1742411605572,4.88703,2046.3,2045.7,0.55]
[1742411605976,4.88688,2046.3,2045.7,0.55]
[1742411606187,5.457246,2046.4,2045.7,6.61]
[1742411606393,4.88673,2046.4,2045.9,0.55]
[1742411606610,4.88636,2046.6,2046.1,0.55]
[1742411606792,4.88636,2046.6,2046.0,6.8081]
[1742411606793,4.88591,2046.7,2046.0,3.7821]
[1742411606991,4.88678,2046.4,2046.0,9.8421]
[1742411607368,4.88699,2046.3,2046.0,9.8421]
[1742411607607,4.88734,2046.1,2046.0,6.06]
[1742411607774,4.88734,2046.1,2045.8,0.8269]
[1742411607972,4.88769,2046.0,2045.8,0.8269]
[1742411608171,4.88769,2046.0,2045.2,6.06]
[1742411608172,0.977445,2046.1,2045.2,6.06]
[1742411608377,0.758,2045.9,2045.1,0.7703]
[1742411608562,4.88891,2045.5,2045.1,0.7703]
[1742411608767,4.88891,2045.5,2045.1,6.8303]
[1742411609062,4.88939,2045.3,2045.1,0.7703]
[1742411609292,4.88906,2045.4,2045.1,0.7703]
[1742411609505,4.88949,2045.2,2045.1,0.7703]
[1742411609707,4.88933,2045.3,2045.1,0.7703]
[1742411610029,4.88864,2045.6,2045.1,0.7703]
[1742411610164,4.88832,2045.7,2045.1,3.7703]
[1742411610561,4.88811,2045.8,2045.2,0.55]
[1742411610779,4.88778,2046.0,2045.4,0.55]
[1742411610979,4.88761,2046.0,2045.5,0.8179]
[1742411611178,5.865005,2046.1,2045.5,0.8179]
[1742411611397,4.88756,2046.1,2045.5,0.8179]
[1742411611710,4.88708,2046.3,2045.6,0.55]
[1742411611861,4.88703,2046.3,2045.6,3.68936047]
[1742411612069,4.88679,2046.4,2045.8,0.55]
[1742411612315,4.88662,2046.5,2045.9,0.8174]
[1742411612518,4.88625,2046.6,2046.0,0.55]
[1742411612716,4.88596,2046.7,2046.3,0.8174]
[1742411613223,4.88568,2046.8,2046.3,0.8174]
[1742411613374,4.88563,2046.9,2046.3,0.8174]
[1742411613375,4.88558,2046.9,2046.3,0.8174]
[1742411613574,9.77118,2046.9,2046.3,0.8174]
[1742411613802,4.88558,2046.9,2046.4,0.55]
[1742411614005,4.88516,2047.1,2046.4,6.61]
[1742411614216,4.88472,2047.2,2046.4,6.06]
[1742411614384,4.88639,2046.5,2046.4,6.06]
[1742411614585,4.88692,2046.3,2046.0,0.7769]
[1742411614805,4.88716,2046.2,2046.0,0.7769]
[1742411615007,4.88716,2046.2,2045.8,12.085]
[1742411615008,0.977408,2046.2,2045.8,12.085]
[1742411615213,4.88764,2046.0,2045.8,12.085]
[1742411615529,4.88758,2046.0,2045.8,12.085]
[1742411615726,0.7607,2046.5,2045.8,12.085]
[1742411616228,4.8876,2046.0,2045.8,12.085]
[1742411616725,4.88782,2045.9,2045.8,6.025]
[1742411617030,4.88679,2046.4,2045.8,6.025]
[1742411617199,4.88705,2046.3,2045.7,0.7715]
[1742411617525,4.8875,2046.1,2045.7,0.7715]
[1742411617726,4.88705,2046.3,2045.8,0.55]
[1742411617933,4.88705,2046.3,2045.8,7.04215]
[1742411618113,9.77338,2046.4,2045.8,7.04215]
[1742411618297,4.88682,2046.4,2045.8,6.61]
[1742411618625,4.88591,2046.7,2045.8,6.61]
[1742411618850,4.88651,2046.5,2046.0,0.55]
[1742411619124,4.88758,2046.0,2045.7,0.7715]
[1742411619293,0.53747509,2045.9,2045.5,6.8154]
[1742411619488,4.88806,2045.8,2045.5,6.8154]
[1742411619815,9.77633,2045.8,2045.5,6.8154]
[1742411620019,9.77634,2045.8,2045.5,6.8154]
[1742411620191,9.77558,2046.0,2045.6,0.55]
[1742411620582,4.88794,2045.9,2045.6,0.55]
[1742411620786,4.88738,2046.1,2045.6,0.55]
[1742411621014,4.88789,2045.9,2045.6,0.55]
[1742411621426,4.88711,2046.2,2045.6,0.55]
[1742411621605,4.88755,2046.1,2045.6,0.55]
[1742411622288,4.887,2046.3,2045.6,0.55]
[1742411622713,4.8877,2046.0,2045.6,0.55]
[1742411622926,4.88822,2045.8,2045.5,6.8154]
[1742411623109,4.88783,2045.9,2045.2,0.36928478]
[1742411623110,4.88887,2045.5,2045.3,3.0]
[1742411623338,4.8882,2045.8,2045.3,0.55]
[1742411623521,4.88844,2045.7,2045.2,1.1943706]
[1742411623926,4.88804,2045.9,2045.2,1.61380766]
[1742411624146,4.88804,2045.9,2045.3,0.55]
[1742411624319,4.88829,2045.8,2045.3,0.55]
[1742411624820,4.8887,2045.6,2045.3,0.55]
[1742411625025,4.88887,2045.5,2045.2,3.8203]
[1742411625431,4.88905,2045.4,2045.2,0.8203]
[1742411625626,4.88935,2045.3,2045.1,3.0]
[1742411625857,4.88905,2045.4,2045.1,3.0]
[1742411626843,4.88957,2045.2,2045.0,6.06]
[1742411627064,0.48887,2045.6,2045.0,6.06]
[1742411627267,0.48887,2045.6,2045.1,0.55]
[1742411627268,5.37757,2045.6,2045.1,0.55]
[1742411627430,4.88857,2045.6,2045.1,0.55]
[1742411628332,0.7867,2045.8,2045.1,0.55]
[1742411628561,4.88903,2045.4,2045.1,0.55]
[1742411628766,4.8888,2045.5,2045.1,0.55]
[1742411629171,0.04871709,2045.6,2045.1,0.55]
[1742411629367,9.77839,2045.4,2045.1,0.55]
[1742411629756,4.88917,2045.4,2045.1,0.55]
[1742411630280,4.88844,2045.7,2045.1,0.55]
[1742411630484,4.88794,2045.9,2045.4,0.55]
[1742411630784,4.88822,2045.8,2045.4,6.61]
[1742411630953,4.88752,2046.1,2045.4,6.61]
[1742411631291,4.88791,2045.9,2045.7,0.7647]
[1742411631456,4.88878,2045.5,2045.4,6.06]
[1742411631653,4.88859,2045.6,2045.4,6.06]
[1742411631841,4.88859,2045.6,2045.5,0.55]
[1742411632340,0.977666,2045.6,2045.0,0.99128449]
[1742411632684,4.88856,2045.6,2045.0,0.55]
[1742411632985,4.88856,2045.6,2045.2,0.55]
[1742411632986,4.88859,2045.6,2045.2,0.55]
[1742411633356,4.88862,2045.6,2045.2,0.55]
[1742411633687,4.88839,2045.7,2045.2,0.55]
[1742411634045,8.70921,2046.0,2045.2,0.55]
[1742411634046,4.88894,2045.5,2045.2,0.55]
[1742411634441,9.77791,2045.5,2045.2,0.55]
[1742411634676,4.8892,2045.4,2045.1,0.8068]
[1742411634976,4.88912,2045.4,2045.2,0.55]
[1742411635677,10.755571,2045.5,2045.2,0.55]
[1742411636077,4.88881,2045.5,2045.2,0.55]
[1742411636273,4.88852,2045.7,2045.2,0.55]
[1742411636481,4.8885,2045.7,2045.2,0.55]
[1742411636647,4.88863,2045.6,2045.2,0.55]
[1742411636974,4.88849,2045.7,2045.2,0.55]
[1742411637179,4.88802,2045.9,2045.2,0.55]
[1742411637478,0.8216,2046.0,2045.5,0.7861]
[1742411637479,9.77537,2046.0,2045.5,0.7861]
[1742411637692,4.88759,2046.0,2045.5,0.7861]
[1742411637896,4.88787,2045.9,2045.5,0.7861]
[1742411638400,4.88759,2046.0,2045.6,0.55]
[1742411638401,4.88844,2045.7,2045.6,0.55]
[1742411638901,0.977657,2045.7,2045.3,12.8628]
[1742411639097,4.88831,2045.7,2045.4,0.55]
[1742411639305,4.8882,2045.8,2045.4,0.55]
[1742411639466,4.88838,2045.7,2045.4,0.55]
[1742411639795,4.88758,2046.0,2045.4,0.55]
[1742411639966,4.88864,2045.6,2045.4,0.55]
[1742411640293,4.88836,2045.7,2045.4,0.55]
[1742411640607,4.88772,2046.0,2045.4,0.55]
[1742411640818,9.61811625,2046.3,2045.4,1.89128]
[1742411640819,5.67889,2046.3,2045.4,1.89128]
[1742411641120,3.84151816,2046.1,2045.4,0.55]
[1742411641269,4.88878,2045.5,2045.3,6.06]
[1742411641468,4.88913,2045.4,2045.0,0.7979]
[1742411641665,0.04871709,2045.3,2045.0,0.7979]
[1742411641882,4.88746,2046.1,2045.1,9.2476438]
[1742411642106,0.488746,2046.1,2045.3,0.55]
[1742411642408,4.88759,2046.0,2045.5,0.55]
[1742411642562,5.67325,2046.3,2045.7,0.55]
[1742411642770,4.88696,2046.3,2045.7,6.61]
[1742411642975,0.7615,2046.5,2045.9,1.3797]
[1742411643213,4.88652,2046.5,2046.1,0.55]
[1742411643383,4.88673,2046.4,2046.1,0.55]
[1742411643590,4.88651,2046.5,2046.1,0.55]
[1742411643796,4.88616,2046.6,2046.1,0.55]
[1742411643979,4.88579,2046.8,2046.3,0.55]
[1742411644183,14.697,2047.2,2046.5,0.55]
[1742411644184,4.88506,2047.1,2046.5,0.55]
[1742411644385,4.88474,2047.2,2046.7,0.55]
[1742411644678,4.88448,2047.3,2046.9,0.55]
[1742411645016,6.37935298,2047.8,2046.9,0.55]
[1742411645017,4.88405,2047.5,2046.9,0.55]
[1742411645233,5.66201,2048.1,2047.1,0.55]
[1742411645391,4.88459,2047.3,2047.1,0.55]
[1742411645593,4.88472,2047.2,2047.1,0.55]
[1742411646089,4.88459,2047.3,2047.1,0.55]
[1742411646322,4.88418,2047.5,2047.1,0.55]
[1742411646525,4.88352,2047.8,2047.1,0.55]
[1742411646730,4.8837,2047.7,2047.3,0.55]
[1742411647018,4.88387,2047.6,2047.4,0.8029]
[1742411647319,4.88387,2047.6,2047.4,1.3529]
[1742411647524,4.88347,2047.8,2047.4,1.3529]
[1742411647699,4.88252,2048.2,2047.5,0.59883738]
[1742411647900,4.88252,2048.2,2047.7,0.55]
[1742411648118,4.88232,2048.3,2047.7,0.55]
[1742411648319,4.88234,2048.2,2047.7,0.55]
[1742411648487,9.76446,2048.3,2047.7,0.55]
[1742411648844,4.88248,2048.2,2047.7,0.55]
[1742411649136,4.88224,2048.3,2047.9,0.55]
[1742411649335,4.88224,2048.3,2047.9,6.561]
[1742411649642,4.88202,2048.4,2047.9,6.561]
[1742411650134,9.76441,2048.3,2047.9,6.561]
[1742411650429,4.88162,2048.5,2047.9,6.561]
[1742411650735,4.88272,2048.1,2047.9,6.561]
[1742411650895,4.88281,2048.0,2047.9,6.561]
[1742411651094,9.76541,2048.1,2047.9,6.561]
[1742411651297,9.76541,2048.1,2047.8,0.7606]
[1742411651298,4.88305,2047.9,2047.8,0.7606]
[1742411651542,4.88364,2047.7,2047.5,0.7579]
[1742411652033,4.88376,2047.6,2047.5,0.7579]
[1742411652339,4.88459,2047.3,2047.2,0.7689]
[1742411652640,4.88493,2047.2,2047.0,6.06]
[1742411652938,4.88493,2047.2,2046.9,3.7689]
[1742411653290,4.88483,2047.2,2047.0,0.55]
[1742411653497,4.88449,2047.3,2047.0,0.55]
[1742411653697,4.88439,2047.4,2047.0,1.61980853]
[1742411653941,4.88439,2047.4,2046.9,0.7689]
[1742411653942,4.8846,2047.3,2046.9,0.7689]
[1742411654135,4.88401,2047.5,2047.0,0.55]
[1742411654336,0.8014,2047.8,2047.0,0.55]
[1742411654337,4.88343,2047.8,2047.3,0.7663]
[1742411654541,4.88343,2047.8,2047.4,6.61]
[1742411654705,9.76689,2047.8,2047.4,6.61]
[1742411654906,4.88369,2047.7,2047.4,6.61]
[1742411655653,4.88369,2047.7,2047.4,8.04525884]
[1742411655850,4.88329,2047.8,2047.4,8.04525884]
[1742411656059,4.88319,2047.9,2047.4,8.04525884]
[1742411656211,4.88273,2048.1,2047.6,0.55]
[1742411656409,4.88295,2048.0,2047.6,3.55]
[1742411656612,4.88273,2048.1,2047.8,0.55]
[1742411656806,4.8818,2048.5,2048.0,0.55]
[1742411657057,9.76361,2048.5,2048.0,0.55]
[1742411657255,4.88209,2048.3,2048.2,0.55]
[1742411657427,4.88279,2048.1,2047.9,6.06]
[1742411657758,4.88335,2047.8,2047.7,0.55]
[1742411657939,4.88376,2047.6,2047.5,6.8164]
[1742411658111,4.88329,2047.8,2047.5,6.8164]
[1742411658307,4.88353,2047.7,2047.6,0.55]
[1742411660464,4.88329,2047.8,2047.6,0.55]
[1742411660961,4.88305,2047.9,2047.6,0.55]
[1742411661119,4.88274,2048.1,2047.8,0.55]
[1742411661524,4.88305,2047.9,2047.8,0.55]
[1742411661841,4.88305,2047.9,2047.6,1.33714]
[1742411661842,4.88305,2047.9,2047.6,0.55]
[1742411662050,3.25234395,2048.4,2047.6,0.55]
[1742411662051,4.88274,2048.1,2047.6,0.55]
[1742411662364,4.88272,2048.1,2047.6,0.55]
[1742411662526,4.88272,2048.1,2047.7,0.43064]
[1742411663177,4.88238,2048.2,2047.7,0.43064]
[1742411663412,9.76452,2048.3,2048.0,0.55]
[1742411663590,0.8137,2048.8,2048.0,3.55]
[1742411663591,4.88177,2048.5,2048.0,3.55]
[1742411663796,4.88189,2048.4,2048.1,0.55]
[1742411664011,4.88209,2048.3,2048.1,0.55]
[1742411664310,4.88272,2048.1,2048.0,0.55]
[1742411664465,4.88233,2048.2,2048.0,0.55]
[1742411664466,9.76488,2048.2,2048.0,0.55]
[1742411664665,4.88257,2048.1,2048.0,0.55]
[1742411664889,4.88233,2048.2,2048.0,0.55]
[1742411665278,9.76489,2048.2,2048.0,0.55]
[1742411665497,4.88171,2048.5,2047.8,6.002]
[1742411665498,4.88302,2048.0,2047.8,6.002]
[1742411665670,4.88305,2047.9,2047.8,6.552]
[1742411666004,4.88302,2048.0,2047.9,0.55]
[1742411666511,4.88258,2048.1,2047.9,0.55]
[1742411666805,4.8827,2048.1,2047.9,1.2052]
[1742411666980,14.682,2048.9,2047.9,1.2052]
[1742411667310,4.88221,2048.3,2047.9,1.2052]
[1742411667666,4.88218,2048.3,2048.1,0.55]
[1742411668001,4.88186,2048.4,2048.1,0.55]
[1742411668365,4.88165,2048.5,2048.1,0.55]
[1742411668565,4.88165,2048.5,2048.1,0.9822]
[1742411668794,9.76339,2048.5,2048.1,0.9822]
[1742411668992,4.88197,2048.4,2048.1,1.34361615]
[1742411669614,4.88164,2048.5,2048.1,1.34361615]
[1742411669913,0.8137,2048.8,2048.1,1.34361615]
[1742411669914,9.76404,2048.4,2048.1,1.34361615]
[1742411670088,4.88196,2048.4,2048.1,1.34361615]
[1742411670415,4.88162,2048.5,2048.1,1.34361615]
[1742411670721,5.65853,2049.1,2048.1,1.34361615]
[1742411670872,4.88055,2049.0,2048.3,1.3053]
[1742411671079,4.88087,2048.9,2048.5,0.55]
[1742411671300,4.88102,2048.8,2048.5,0.55]
[1742411671631,4.88043,2049.0,2048.5,0.55]
[1742411671814,9.75974,2049.3,2048.8,0.7534]
[1742411671984,4.87987,2049.3,2048.9,0.55]
[1742411672186,4.87991,2049.3,2049.1,0.55]
[1742411672384,4.87982,2049.3,2049.1,0.55]
[1742411672596,4.87995,2049.2,2049.1,0.55]
[1742411672798,4.87995,2049.2,2048.6,0.55]
[1742411672799,4.88108,2048.8,2048.6,0.55]
[1742411673136,4.92921709,2049.0,2048.2,3.789]
[1742411673328,4.88202,2048.4,2048.2,0.789]
[1742411673481,4.8823,2048.3,2048.1,5.997]
[1742411673682,4.8823,2048.3,2048.2,0.55]
[1742411673918,4.88233,2048.2,2048.1,5.997]
[1742411674126,4.8823,2048.3,2048.1,5.997]
[1742411674127,9.76461,2048.3,2048.1,5.997]
[1742411674327,4.88222,2048.3,2048.1,5.997]
[1742411674496,9.7645,2048.3,2048.1,5.997]
[1742411674827,9.7645,2048.3,2048.2,0.55]
[1742411675373,4.88222,2048.3,2048.2,0.55]
[1742411677327,4.88155,2048.6,2048.2,0.55]
[1742411677639,4.88155,2048.6,2048.4,0.55]
[1742411677799,4.88106,2048.8,2048.4,0.55]
[1742411677988,4.88115,2048.7,2048.4,0.55]
[1742411678193,4.88139,2048.6,2048.4,0.55]
[1742411678429,4.88162,2048.5,2048.4,0.55]
[1742411678601,4.88149,2048.6,2048.4,0.55]
[1742411678807,9.76253,2048.7,2048.4,0.55]
[1742411679139,4.88118,2048.7,2048.4,0.55]
[1742411679336,4.8815,2048.6,2048.4,0.55]
[1742411679711,4.88114,2048.7,2048.4,0.55]
[1742411679913,4.8814,2048.6,2048.4,0.55]
[1742411680162,4.88162,2048.5,2048.4,0.55]
[1742411680310,4.88162,2048.5,2048.1,5.997]
[1742411680311,6.15484,2048.6,2048.1,5.997]
[1742411680510,4.88186,2048.4,2048.2,0.55]
[1742411680749,4.8816,2048.6,2048.2,0.55]
[1742411680948,4.88116,2048.7,2048.4,0.55]
[1742411681429,9.76242,2048.7,2048.4,0.55]
[1742411681615,4.88101,2048.8,2048.4,0.55]
[1742411681815,9.76208,2048.8,2048.4,0.55]
[1742411682122,4.88116,2048.7,2048.4,0.55]
[1742411682647,4.8808,2048.9,2048.4,0.55]
[1742411682860,4.88044,2049.0,2048.5,0.0488109]
[1742411683012,4.88044,2049.0,2048.4,0.55]
[1742411683013,4.88043,2049.0,2048.4,0.55]
[1742411683210,4.88043,2049.0,2048.4,0.9833]
[1742411683417,0.8009,2049.5,2048.6,0.55]
[1742411683723,4.88029,2049.1,2048.8,0.55]
[1742411683930,4.87975,2049.3,2048.8,0.55]
[1742411684112,4.87988,2049.3,2048.8,0.55]
[1742411684318,9.76017,2049.2,2048.8,1.28128]
[1742411684514,4.87999,2049.2,2048.8,1.28128]
[1742411684950,4.87999,2049.2,2048.8,0.55]
[1742411685128,4.87972,2049.3,2048.8,0.55]
[1742411685351,4.87948,2049.4,2048.8,0.59880162]
[1742411685560,4.87956,2049.4,2048.8,0.55]
[1742411685940,5.68014,2049.5,2048.8,0.55]
[1742411686150,4.87928,2049.5,2049.0,0.55]
[1742411686468,4.87933,2049.5,2049.2,0.55]
[1742411686626,4.87969,2049.4,2049.2,0.55]
[1742411686960,4.87978,2049.3,2049.1,0.55]
[1742411687168,4.87978,2049.3,2048.8,0.8191]
[1742411687169,3.12801985,2049.4,2048.9,0.55]
[1742411687459,4.88081,2048.9,2048.5,0.7843]
[1742411687633,4.88102,2048.8,2048.5,0.7843]
[1742411687819,4.88032,2049.1,2048.5,3.7843]
[1742411688013,4.8806,2049.0,2048.6,0.55]
[1742411688451,0.7791,2049.3,2048.6,0.55]
[1742411688754,4.88012,2049.2,2048.8,0.55]
[1742411689050,4.87952,2049.4,2048.8,0.55]
[1742411689429,4.88006,2049.2,2048.8,0.55]
[1742411689640,4.87961,2049.4,2048.8,0.55]
[1742411689846,5.65631,2049.6,2049.0,0.55]
[1742411690041,3.12801985,2049.7,2049.0,0.55]
[1742411690245,4.87961,2049.4,2049.0,0.55]
[1742411690466,4.87949,2049.4,2049.0,0.55]
[1742411690625,4.87926,2049.5,2049.0,0.55]
[1742411690626,9.75865,2049.5,2049.0,0.55]
[1742411690823,4.87902,2049.6,2049.0,3.55]
[1742411691027,4.87888,2049.7,2049.0,3.55]
[1742411691360,4.87834,2049.9,2049.4,0.55]
[1742411691537,4.87821,2050.0,2049.4,0.55]
[1742411691538,9.75649,2050.0,2049.4,0.55]
[1742411692064,4.87835,2049.9,2049.4,0.55]
[1742411692358,4.87829,2049.9,2049.4,0.55]
[1742411693362,4.878,2050.1,2049.4,6.537]
[1742411693653,4.87827,2050.0,2049.6,0.55]
[1742411693840,4.87829,2049.9,2049.6,0.55]
[1742411694044,4.87865,2049.8,2049.6,0.55]
[1742411695061,4.87864,2049.8,2049.6,0.55]
[1742411695428,9.75735,2049.8,2049.6,0.55]
[1742411695631,9.75735,2049.8,2049.5,3.0]
[1742411695632,4.87919,2049.6,2049.3,0.8308]
[1742411695871,3.12801985,2049.7,2049.1,0.7991]
[1742411696155,4.87962,2049.4,2049.2,0.55]
[1742411696375,4.87971,2049.3,2049.0,5.985]
[1742411696733,4.87962,2049.4,2049.1,0.55]
[1742411697257,4.87948,2049.4,2049.1,0.55]
[1742411697827,4.87876,2049.7,2049.1,1.31709945]
[1742411698027,4.8797,2049.4,2049.1,0.55]